Cogmind - Beta 16 --- EXPLORER MODE // 2025.12.10 @ 17:16:28 Player: K.K.Y. Result: Destroyed by H-66 Slayer via exploding Power Conduit Performance ------------- Evolutions (4) 2000 Regions Visited (6) 1200 Robots Destroyed (72) 360 Value Destroyed (2224) 2224 Prototype IDs (28) 560 Alien Tech Used (0) 0 Bonus (2155) 2155 TOTAL SCORE: 8499 Bonus ------- Follower Combat Kills 155 Delivered SUBCON Basin 2000 Cogmind --------- Core Integrity 0/850 Matter 263/300 Energy 951/1090 System Corruption 6% Temperature Cool (12) Movement Hovering (106) Ox1 Location -6/Factory Parts ------- > --- POWER (2) -------- Improved Deuterium Engine Hybrid Fission Core > --- PROPULSION (6) --- Improved Gravmag System Improved Gravmag System Nuclear Pulse Thruster > --- UTILITY (6) ------ Advanced Sensor Array Improved Signal Interpreter Phase Shifter Layered Medium Armor Plating Layered Medium Armor Plating Tech Extrapolator > --- WEAPON (2) ------- Powered Hammer Chainsword > --- INVENTORY (5) ---- High-capacity Storage Unit Tower Shield Advanced Assault Cannon Power Maul Peak State ------------ > --- POWER ------------ Fission Core Fission Core > --- PROPULSION ------- Cooled Airjet Cooled Airjet Cooled Airjet Cooled Airjet Combat Airjet Combat Airjet > --- UTILITY ---------- Improved Heat Sink Small Storage Unit Gravity Neutralizer Experimental Power Shielding EM Shield Tech Extrapolator > --- WEAPON ----------- Thermic Laser Coil Gun > --- INVENTORY -------- Improved VTOL Module Makeshift Flight Unit Huge Storage Unit Advanced Terrain Scan Processor Tower Shield Autobeam Plasma Cutter [Rating: 80] Favorites ----------- Power Fission Core Engine Light Angular Momentum Engine Power Core Fission Core Propulsion Combat Airjet Wheel Wheel Hover Unit Combat Airjet Flight Unit Flight Unit Utility Small Storage Unit Device Improved Heat Sink Storage Small Storage Unit Processor Tech Extrapolator Hackware System Shield Protection Improved Core Shielding Weapon Beam Cannon Energy Gun Makeshift Laser Energy Cannon Beam Cannon Ballistic Gun Heavy Battle Rifle Ballistic Cannon Gauss Cannon Special Weapon Mining Laser Impact Weapon Powered Hammer Slashing Weapon Chainsword Build | -11 -10 -10 -10 -9 -9 -6 ------- Run | Yrd Mat Min Sub Rec Scr Fac Slots Evolved 9 | . 1 . . . . 8 Power 1 | . . . . . . 1 Propulsion 4 | . 1 . . . . 3 Utility 4 | . . . . . . 4 Weapon . | . . . . . . . Parts Attached 94 | 6 13 8 6 . 2 59 Power 10 | 1 . 2 2 . 1 4 Engine 7 | 1 . 2 2 . . 2 Core 3 | . . . . . 1 2 Reactor . | . . . . . . . Propulsion 26 | 2 7 4 . . . 13 Treads . | . . . . . . . Leg . | . . . . . . . Wheel 2 | 2 . . . . . . Hover 15 | . . 3 . . . 12 Flight 9 | . 7 1 . . . 1 Utility 37 | 1 2 2 2 . . 30 Device 20 | 1 1 1 1 . . 16 Storage 3 | . . 1 1 . . 1 Processor 5 | . 1 . . . . 4 Hackware 3 | . . . . . . 3 Protection 6 | . . . . . . 6 Artifact . | . . . . . . . Weapon 21 | 2 4 . 2 . 1 12 Energy Gun 7 | . 1 . 1 . 1 4 Energy Cannon 1 | . 1 . . . . . Ballistic Gun 6 | 2 1 . 1 . . 2 Ballistic Cannon 1 | . . . . . . 1 Launcher . | . . . . . . . Special Weapon 2 | . 1 . . . . 1 Impact Weapon 2 | . . . . . . 2 Slashing Weapon 2 | . . . . . . 2 Piercing Weapon . | . . . . . . . Special Melee Weapon . | . . . . . . . Unidentified Prototypes 7 | . . 1 . . . 6 Parts Lost 26 | . . . 3 . . 23 Power 3 | . . . 1 . . 2 Propulsion 5 | . . . . . . 5 Utility 11 | . . . 1 . . 10 Weapon 7 | . . . 1 . . 6 Highest Loss Streak 10 | . . . 1 . . 10 To Critical Strikes . | . . . . . . . Average Backups 5 | 2 3 5 6 6 7 4 Power . | . . . . . . . Propulsion 2 | 1 2 3 4 3 1 . Utility 2 | . . 1 1 2 3 3 Weapon 1 | . 1 1 . . 1 1 Tool/Special . | . . . . . . . Unused Backups 14 | 1 4 1 1 . 1 6 Power . | . . . . . . . Propulsion 7 | 1 1 1 1 . 1 2 Utility 4 | . 2 . . . . 2 Weapon 3 | . 1 . . . . 2 Tool/Special . | . . . . . . . Average Slot Usage (%) 88 | . 90 98 99 99 100 71 Engine 7 | . 12 12 11 12 7 1 Core 2 | . . . . . 5 6 Hover 25 | . . 13 37 37 37 20 Flight 5 | . 25 22 . . . . Device 11 | . 12 12 11 12 12 11 Storage 6 | . . 3 12 11 12 2 Processor 3 | . 6 8 . . . 6 Hackware 1 | . . . . . . 4 Protection 1 | . . . . . . 4 Energy Gun 7 | . . 12 9 12 12 2 Energy Cannon 3 | . 1 12 8 . . . Ballistic Gun 5 | . 22 . 3 12 12 2 Slashing Weapon 1 | . . . . . . 3 Peak Build Rating 80 | 8 11 30 53 53 37 80 Average Rating 38 | 3 8 18 34 40 35 57 On Entrance 24 | . 8 9 30 53 35 37 Avg Prop Armor Cover (%) 4 | . . . 4 . . 4 Naked Turns . | . . . . . . . Heaviest Build 96 | 6 9 16 96 96 24 42 Greatest Support 70 | 20 20 36 36 36 36 70 Greatest Overweight (x) 10 | . . . 2 2 . 10 Average Overweight (x) . | . . . . . . . Largest Inventory Capacity 25 | 5 5 8 25 25 8 8 Average Capacity 7 | 5 5 6 9 13 8 6 Most Carried 23 | 5 5 7 23 23 8 8 Average Carried 7 | 2 3 5 9 12 8 5 Final Capacity 25 | 5 5 8 25 8 8 5 Final Carried 23 | 2 5 7 23 8 8 5 Class Distribution -------------------- 55% | Hacker-Mutant 38% | Scavenger-Mutant 6% | Scientist-Mutant Dominant Class ---------------- Hacker-Mutant | -10/Materials Hacker-Mutant | -10/Mines Scavenger-Mutant | -10/Subcaves Scavenger-Mutant | -9/Recycling Scavenger-Mutant | -9/Scraptown Hacker-Mutant | -6/Factory Resources | -11 -10 -10 -10 -9 -9 -6 ----------- Run | Yrd Mat Min Sub Rec Scr Fac Matter Collected 1707 | 286 248 80 102 16 . 975 Remotely . | . . . . . . . Salvage Created 3287 | 161 475 393 376 167 . 1715 Parts 148 | 14 38 8 16 10 . 62 Haulers Intercepted 5 | . 2 . . . . 3 Recyclers Shooed 1 | . . . . . . 1 Parts Field Recycled . | . . . . . . . Retrieved Matter . | . . . . . . . Parts Self-Destructed . | . . . . . . . Prevented . | . . . . . . . Parts Restored . | . . . . . . . Kills | -11 -10 -10 -10 -9 -9 -6 ------- Run | Yrd Mat Min Sub Rec Scr Fac Combat Hostiles Destroyed 48 | . 12 3 6 3 . 24 Melee 9 | . . . . . . 9 Guns 29 | . 12 . 2 3 . 12 Cannons 6 | . . 2 4 . . . Classes Destroyed 13 | 2 5 . 3 1 . 2 Worker 2 | . 2 . . . . . Tunneler 4 | 4 . . . . . . Hauler 5 | . 2 . . . . 3 Recycler 6 | 1 . 4 . . . 1 Turret 2 | . . . 2 . . . Watcher 5 | . 3 . . . . 2 Swarmer 12 | . 8 2 . . . 2 Grunt 14 | . 4 1 . . . 9 Sentry 8 | . . . . 3 . 5 Hunter 3 | . . . . . . 3 Programmer 5 | . . . . . . 5 Artisan 1 | . . . 1 . . . Subdweller 6 | . . . 6 . . . Best Kill Streak 6 | 5 6 2 3 1 . 4 Combat Bots Only 4 | . 4 2 3 1 . 4 Max Kills in Single Turn 1 | 1 1 1 1 1 . 1 Gunslinging . | . . . . . . . Exploded . | . . . . . . . Melee 1 | . . . . . . 1 Uniques/NPCs Destroyed . | . . . . . . . Combat | -11 -10 -10 -10 -9 -9 -6 -------- Run | Yrd Mat Min Sub Rec Scr Fac Hostile Shots Fired 978 | . 42 19 66 . . 851 Missed 392 | . 13 8 24 . . 347 Hits 586 | . 29 11 42 . . 504 Melee 1 | . . . . . . 1 Projectile 585 | . 29 11 42 . . 503 AOE 3 | . . . . . . 3 Critical Strikes 9 | . . . 1 . . 8 Damage Taken 4350 | . 169 71 483 . . 3627 Core 1076 | . 30 15 113 . . 918 Absorbed by Shields 114 | . . . . . . 114 Redirected to Shielding 178 | . . . . . . 178 Ignored by Resistances 2904 | . 115 47 297 . . 2445 Regen/Repaired (Parts) 38 | . . . . . . 38 Core Remaining (%) 68 | 100 . . . . 36 . Volleys Fired 241 | 13 50 21 69 3 . 85 Largest 2 | 2 2 2 2 2 . 2 Hottest 210 | 40 120 110 210 183 . 118 Shots Fired 428 | 26 100 37 125 7 . 133 Gun 325 | 26 98 16 46 7 . 132 Cannon 83 | . 1 21 60 . . 1 Launcher . | . . . . . . . Special 20 | . 1 . 19 . . . Kinetic 221 | 26 98 . 9 3 . 85 Thermal 201 | . 2 37 116 4 . 42 Explosive . | . . . . . . . Electromagnetic 6 | . . . . . . 6 Robot Hit Streak 45 | 14 17 12 45 19 . 27 Robot Miss Streak 3 | 1 3 1 1 . . 2 Penetration Max 1 | . . . . . . 1 Secondary Targets 3 | . 1 . . . . 2 Max Gunslinging Chain 1 | . 1 . . . . 1 Autonomous 9 | . . . . . . 9 Shots Hit Robots 341 | 20 78 32 52 5 . 154 Core Hits 144 | 9 34 12 19 3 . 67 Critical Kills . | . . . . . . . Critical Parts Destroyed 7 | 1 . . . . . 6 Critical Strikes 23 | 1 . 2 5 . . 15 Burn 15 | . . 2 5 . . 8 Destroy 5 | 1 . . . . . 4 Smash 2 | . . . . . . 2 Sever 1 | . . . . . . 1 Melee Attacks 51 | . . . . . . 51 Impact 20 | . . . . . . 20 Slashing 31 | . . . . . . 31 Piercing . | . . . . . . . Sneak Attacks 2 | . . . . . . 2 Combat Hostiles . | . . . . . . . Follow-up Attacks 4 | . . . . . . 4 Damage Inflicted 6587 | 172 661 506 890 125 . 4233 Guns 3782 | 172 643 190 283 125 . 2369 Cannons 916 | . 18 313 559 . . 26 Explosions . | . . . . . . . Melee 1836 | . . . . . . 1836 Ramming 5 | . . 3 . . . 2 Kinetic 2461 | 172 643 . . 25 . 1621 Thermal 2235 | . 18 503 890 100 . 724 Explosive . | . . . . . . . Electromagnetic 50 | . . . . . . 50 Impact 937 | . . . . . . 937 Slashing 899 | . . . . . . 899 Piercing . | . . . . . . . Highest Corruption 6 | . . . . 1 . 6 Average Corruption 3 | . . . . 1 . 3 Corruption Purged . | . . . . . . . Corruption Blocked . | . . . . . . . Effects 28 | . . . . 4 . 24 Message Errors 12 | . . . . 1 . 11 Matter Fused 7 | . . . . 1 . 6 Heat Flow Errors 2 | . . . . . . 2 Energy Discharges 1 | . . . . . . 1 Parts Rejected 2 | . . . . . . 2 Data Loss (minor) 1 | . . . . . . 1 Data Loss (major) 2 | . . . . 1 . 1 Misfires 1 | . . . . 1 . . Overload Shots 18 | . . . 15 3 . . Effects 3 | . . . 3 . . . Energy Bleed 2 | . . . 2 . . . Heat Surge 1 | . . . 1 . . . Overflow Damage 251 | . . 16 5 . . 230 Projectiles 21 | . . 16 5 . . . Explosions . | . . . . . . . Melee 230 | . . . . . . 230 Knockbacks 7 | . . . . . . 7 Impact 7 | . . . . . . 7 Kinetic . | . . . . . . . Secondary . | . . . . . . . Self-Inflicted Damage 2 | . . 1 . . . 1 Shots . | . . . . . . . Rammed 2 | . . 1 . . . 1 Targets Rammed 2 | . . 1 . . . 1 Kicked . | . . . . . . . Crushed . | . . . . . . . Highest Temperature 590 | . 55 282 280 93 . 590 Average Temperature 99 | . 10 85 83 44 . 135 Received Heat Transfer 1745 | . 78 42 425 . . 1200 Effects 21 | . . . . . . 21 Shutdowns 9 | . . . . . . 9 Interference 6 | . . . . . . 6 Matter Decay 1 | . . . . . . 1 Short Circuit 4 | . . . . . . 4 Damage (minor) 1 | . . . . . . 1 Siege Activations . | . . . . . . . Martial Activations . | . . . . . . . Shielding Activations . | . . . . . . . Robots Disrupted . | . . . . . . . Combat Hostiles . | . . . . . . . Robots Corrupted 3 | . . . . . . 3 Combat Hostiles 2 | . . . . . . 2 Parts Fried 6 | . . . . . . 6 Impact Corruptions 10 | . . . . . . 10 Robots Melted 2 | . . 1 . . . 1 Combat Hostiles 2 | . . 1 . . . 1 Parts Melted 19 | . . 4 4 1 . 10 Heat Transferred 6889 | . 37 1369 2383 150 . 2950 Parts Sabotaged . | . . . . . . . Parts Stolen . | . . . . . . . Parts Stripped . | . . . . . . . Power Chain Reactions . | . . . . . . . Alert | -11 -10 -10 -10 -9 -9 -6 ------- Run | Yrd Mat Min Sub Rec Scr Fac Maximum Alert Level . | . . . . . . . Low Security (%) 100 | 100 100 100 . 100 . 100 Level 1 . | . . . . . . . Level 2 . | . . . . . . . Level 3 . | . . . . . . . Level 4 . | . . . . . . . Level 5 . | . . . . . . . High Security . | . . . . . . . Max Security . | . . . . . . . Peak Influence 148 | 10 113 50 . 21 . 148 Initial . | . . . . . . . Average 15 | 1 59 2 . 1 . 15 Influence Increases 1551 | 25 378 121 55 77 . 895 Destroy 0b10 Robot/C 900 | . 240 80 40 60 . 480 Destroy 0b10 Robot/NC 110 | 25 35 20 . . . 30 Destroy Leader 240 | . 70 20 . . . 150 Allied During Kill 1 | . . 1 . . . . Successful Hack 99 | . 29 . . 16 . 54 Disable Machine 12 | . 4 . . . . 8 Destroy Structure 9 | . . . . 1 . 8 Lose Combat Pursuer 180 | . . . 15 . . 165 Influence Decreases 1496 | 25 378 121 55 77 . 840 Time Decay 1366 | 25 378 121 55 77 . 710 Lost Part 130 | . . . . . . 130 Squads Dispatched 15 | . 2 . . . . 13 Investigation 6 | . 2 . . . . 4 Extermination 6 | . . . . . . 6 Reinforcement 3 | . . . . . . 3 Assault . | . . . . . . . Garrison . | . . . . . . . Intercept . | . . . . . . . Searches Triggered . | . . . . . . . Construction Impeded . | . . . . . . . Haulers Reinforced 1 | . . . . . . 1 Active Scanning Responses . | . . . . . . . Cargo Convoy Interrupts . | . . . . . . . Stealth | -11 -10 -10 -10 -9 -9 -6 --------- Run | Yrd Mat Min Sub Rec Scr Fac Distress Signals . | . . . . . . . Communications Jammed 35 | . . . . . . 35 Distress Signals 35 | . . . . . . 35 Times Spotted 85 | . 19 4 14 . . 48 Peak Tracking Total 7 | . 5 2 3 . . 7 Tactical Retreats 4 | . . . 1 . . 3 Traps | -11 -10 -10 -10 -9 -9 -6 ------- Run | Yrd Mat Min Sub Rec Scr Fac Traps Triggered 6 | . . . . . . 6 Indirectly . | . . . . . . . Trap Hack Attempts . | . . . . . . . Triggered . | . . . . . . . Disarmed . | . . . . . . . Reprogrammed . | . . . . . . . Reused . | . . . . . . . Traps Extracted . | . . . . . . . Installed . | . . . . . . . Triggered . | . . . . . . . Machines | -11 -10 -10 -10 -9 -9 -6 ---------- Run | Yrd Mat Min Sub Rec Scr Fac Machines Disabled 4 | . 1 . 1 . . 2 Max in Single Turn 1 | . 1 . 1 . . 1 Machines Repaired . | . . . . . . . Machines Dismantled . | . . . . . . . Machines Sabotaged . | . . . . . . . Overloaded Fab Kills . | . . . . . . . Hacking | -11 -10 -10 -10 -9 -9 -6 --------- Run | Yrd Mat Min Sub Rec Scr Fac Machines Accessed 40 | . 10 . 4 11 . 15 Terminals 17 | . 8 . . 5 . 4 Fabricators 2 | . . . . . . 2 Repair Stations 2 | . . . . . . 2 Recycling Units 11 | . 2 . . 6 . 3 Scanalyzers 4 | . . . . . . 4 Garrison Access . | . . . . . . . Total Hacks 122 | . 28 . 8 32 . 54 Successful 80 | . 17 . 8 23 . 32 Failed 42 | . 11 . . 9 . 22 Catastrophic 3 | . . . . 1 . 2 Database Lockouts . | . . . . . . . Manual 44 | . 25 . . 15 . 4 Terminals 52 | . 23 . . 16 . 13 Fabricators 3 | . . . . . . 3 Repair Stations 5 | . . . . . . 5 Recycling Units 28 | . 5 . . 16 . 7 Scanalyzers 26 | . . . . . . 26 Garrison Access . | . . . . . . . Terminal Hacks 27 | . 7 . 8 8 . 4 Record 5 | . . . 5 . . . Part Schematic 1 | . . . . 1 . . Robot Schematic 2 | . . . . 2 . . Robot Analysis 5 | . 1 . . 3 . 1 Prototype ID Bank 7 | . 6 . . 1 . . Open Door 1 | . . . 1 . . . Open DSF 1 | . . . . . . 1 Terminal Index 1 | . . . . 1 . . Dispatch Records 1 | . . . . . . 1 Recall Reinforcements 1 | . . . . . . 1 Proto ID Catalog 1 | . . . 1 . . . Release Object 1 | . . . 1 . . . Fabricator Hacks 1 | . . . . . . 1 Build 1 | . . . . . . 1 Repair Station Hacks 2 | . . . . . . 2 Scan Component 1 | . . . . . . 1 Repair 1 | . . . . . . 1 Recycling Unit Hacks 8 | . 1 . . 4 . 3 Retrieve Components 8 | . 1 . . 4 . 3 Scanalyzer 21 | . . . . . . 21 Insert Component 3 | . . . . . . 3 Analyze 4 | . . . . . . 4 Retrieve Study 14 | . . . . . . 14 Garrison Access Hacks . | . . . . . . . Unauthorized Hacks 20 | . 8 . . 11 . 1 Terminals 14 | . 8 . . 5 . 1 Botnet 14 | . 8 . . 5 . 1 Fabricators . | . . . . . . . Repair Stations . | . . . . . . . Recycling Units 6 | . . . . 6 . . Reject 6 | . . . . 6 . . Scanalyzers . | . . . . . . . Garrison Access . | . . . . . . . Data Cores Recovered . | . . . . . . . Used . | . . . . . . . Hacking Detections 28 | . 8 . . 8 . 12 Full Trace Events 11 | . 4 . . 4 . 3 Feedback Events 2 | . . . . 1 . 1 Corruption 2 | . . . . 1 . 1 Feedback Blocked . | . . . . . . . Robot Schematics Acquired 2 | . . . . 2 . . Robots Built 2 | . . . . . . 2 Authchips . | . . . . . . . Time 116 | . . . . . . 116 Total Robot Build Rating 6 | . . . . . . 6 Part Schematics Acquired 14 | . . . . 1 . 13 Parts Built . | . . . . . . . Authchips . | . . . . . . . Time . | . . . . . . . Total Part Build Rating . | . . . . . . . Part Studies Acquired 14 | . . . . . . 14 Parts Repaired 1 | . . . . . . 1 Time 25 | . . . . . . 25 Parts Recycled . | . . . . . . . Recycled Matter . | . . . . . . . Retrieved Matter . | . . . . . . . Retrieved Components 15 | . 3 . . 7 . 5 Parts Scanalyzed 3 | . . . . . . 3 Part Schematics Acquired 3 | . . . . . . 3 Parts Damaged . | . . . . . . . Bothacking | -11 -10 -10 -10 -9 -9 -6 ------------ Run | Yrd Mat Min Sub Rec Scr Fac Used RIF Installer . | . . . . . . . Robots Hacked . | . . . . . . . Non-combat . | . . . . . . . Combat . | . . . . . . . Robot Hacks Applied . | . . . . . . . Relay Couplers Released . | . . . . . . . Fabnet Peak Effective % . | . . . . . . . Robots Rewired . | . . . . . . . Allies Hacked 2 | . . . . . . 2 Hacks Repelled . | . . . . . . . Allies | -11 -10 -10 -10 -9 -9 -6 -------- Run | Yrd Mat Min Sub Rec Scr Fac Total Allies 4 | . . 2 . . . 2 Largest Group 2 | . . 2 2 . . 2 Highest-Rated Group 42 | . . 38 42 . . 26 Highest-Rated Ally 31 | . . 31 31 . . 13 Total Orders . | . . . . . . . Ally Attacks 27 | . . 3 24 . . . Total Damage 420 | . . 43 377 . . . Kills 5 | . . 1 4 . . . Allies Corrupted . | . . . . . . . Allies Melted . | . . . . . . . Intel | -11 -10 -10 -10 -9 -9 -6 ------- Run | Yrd Mat Min Sub Rec Scr Fac Active Infowar (turns) 3217 | 46 538 963 621 . . 1049 Optics 949 | . 307 642 . . . . Sensors 2063 | . 234 963 621 . . 245 IFF 621 | . . . . . . 621 Terrain 350 | 46 304 . . . . . Traps 2 | . . . . . . 2 Cloaking 189 | . . . . . . 189 Jamming 405 | . . . . . . 405 Robot Analysis Total 5 | . 1 . . 3 . 1 Derelict Logs Recovered 3 | . . 1 2 . . . Drone Launches . | . . . . . . . Drone Recoveries . | . . . . . . . Exploration | -11 -10 -10 -10 -9 -9 -6 ------------- Run | Yrd Mat Min Sub Rec Scr Fac Turns Passed 7071 | 129 538 963 1575 774 593 2499 Spaces Moved 7311 | 139 872 841 1519 770 795 2375 Core 282 | 102 . . . . . 180 Treads . | . . . . . . . Legs . | . . . . . . . Wheels 161 | 37 124 . . . . . Hover 5549 | . . 270 1519 770 795 2195 Flight 1319 | . 748 571 . . . . Fastest Speed 34 | 50 34 34 74 74 74 41 Average Speed 66 | 57 40 47 83 92 74 61 Slowest Speed 550 | 80 80 80 214 214 74 550 Overloaded Moves . | . . . . . . . Propulsion Burnouts . | . . . . . . . Robots Hopped 5 | . 3 2 . . . . Potential Cave-ins 4 | . . . . . . 4 Cave-ins Triggered . | . . . . . . . Exploration Rate (%) 68 | 4 98 99 79 99 56 43 Regions Visited 6 Branch Regions 4 Pre-discovered Areas . | . . . . . . . Known Exits Taken 6 | 1 1 1 1 1 1 . Unknown Exits Taken . | . . . . . . . Scrap Searched 8 | . . 1 6 . 1 . Spaces Dug 3 | . . . . . . 3 Terrain Destroyed 7 | . . . . 1 . 6 Melee 3 | . . . . . . 3 Projectile 4 | . . . . 1 . 3 AOE . | . . . . . . . Terrain Rammed . | . . . . . . . Walls Destroyed . | . . . . . . . Machines Disabled . | . . . . . . . Actions | -11 -10 -10 -10 -9 -9 -6 --------- Run | Yrd Mat Min Sub Rec Scr Fac Total 9015 | 166 973 1368 1666 827 800 3215 Wait 1192 | . 16 489 57 42 . 588 Move 7295 | 138 865 836 1518 769 794 2375 Hop 5 | . 3 2 . . . . Pick Up 58 | 8 11 4 8 7 1 19 Fast Attach 46 | 1 2 3 1 1 . 38 Attach 28 | 5 1 1 2 . . 19 Detach 9 | . . . . . . 9 Swap 35 | . 12 4 5 . 2 12 Drop 61 | 1 13 7 6 5 3 26 Fire 241 | 13 50 21 69 3 . 85 Melee 43 | . . . . . . 43 Ram 2 | . . 1 . . . 1 Kick . | . . . . . . . Crush . | . . . . . . . Escape Stasis . | . . . . . . . Rewire . | . . . . . . . Trap . | . . . . . . . Miscellaneous . | . . . . . . . Route ------- -11/Scrapyard -10/Materials (discovered 6 exits: *Mat x3 / *Min x2 / *Sub) -10/Mines (discovered 4 exits: *Mat x2 / *Exi / *Sub) -10/Subcaves (discovered 4 exits: *Mat x2 / *Rec / *Scr) -9/Recycling (discovered 2 exits: *Fac / *Scr) -9/Scraptown -6/Factory (discovered 7 exits: *Fac x3 / Low x2 / Ext x2) History --------- Turn | Location | Event 5 | -11/Scrapyard | Identified exit to Materials 5 | -11/Scrapyard | Discovered exit to Materials (range 15) 130 | -11/Scrapyard | Entered Materials 130 | -10/Materials | Evolved 1 slot: Propulsion x1 196 | -10/Materials | Identified exit to Mines 196 | -10/Materials | Discovered exit to Mines (range 4) 263 | -10/Materials | Discovered exit to Mines (range 8) 314 | -10/Materials | Build established: Hacker-Mutant 343 | -10/Materials | Identified exit to Materials 343 | -10/Materials | Discovered exit to Materials (range 11) 515 | -10/Materials | Discovered exit to Materials (range 16) 592 | -10/Materials | Identified exit to Subcaves 592 | -10/Materials | Discovered exit to Subcaves (range 14) 609 | -10/Materials | Discovered exit to Materials (range 12) 668 | -10/Materials | Entered Mines 671 | -10/Mines | Assembled infested the area 680 | -10/Mines | Deemed a non-threat by the Exiles lab entrance 680 | -10/Mines | Identified exit to Exiles 680 | -10/Mines | Discovered exit to Exiles (range 5) 765 | -10/Mines | Met 8R-AWN 1047 | -10/Mines | Discovered exit to Subcaves (range 8) 1049 | -10/Mines | Discovered exit to Materials (range 4) 1079 | -10/Mines | Found a damaged Exp. Sensor Array with a note attached 1080 | -10/Mines | Found Prototype Device 1080 | -10/Mines | Identified Exp. Sensor Array 1355 | -10/Mines | Discovered exit to Materials (range 6) 1631 | -10/Mines | Entered Subcaves 1631 | -10/Subcaves | Accompanied by 2 allies 1632 | -10/Subcaves | Approached by a straggling Scientist 1636 | -10/Subcaves | Led the pair of lost Derelicts to an unsafe place 1705 | -10/Subcaves | Visited 4L-MR0's lab 1721 | -10/Subcaves | Found Tower Shield 1752 | -10/Subcaves | Shifting Twisted Machinery released Flamer 1753 | -10/Subcaves | Shifting Twisted Machinery released Sub. Laser 1823 | -10/Subcaves | Shifting Twisted Machinery released Battle Cannon 1824 | -10/Subcaves | Shifting Twisted Machinery released Sub. Machine Gun 2008 | -10/Subcaves | Build established: Scavenger-Mutant 2020 | -10/Subcaves | Scientist uncovered a shortcut to Scraptown 2127 | -10/Subcaves | Disturbed a concealed Subdweller 2164 | -10/Subcaves | Identified exit to Materials 2164 | -10/Subcaves | Discovered exit to Materials (range 14) 2208 | -10/Subcaves | Visited Clippyterm 2211 | -10/Subcaves | Learned 40 Factory zone layouts 2223 | -10/Subcaves | Learned Materials security intel 2259 | -10/Subcaves | Core integrity fell below 50% 2356 | -10/Subcaves | Identified exit to Recycling 2356 | -10/Subcaves | Discovered exit to Recycling (range 16) 2537 | -10/Subcaves | Discovered exit to Materials (range 16) 2679 | -10/Subcaves | Disturbed a concealed Subdweller 2819 | -10/Subcaves | Shifting Twisted Machinery released Flamer 2836 | -10/Subcaves | Shifting Twisted Machinery released Battle Cannon 3030 | -10/Subcaves | Found SUBCON Basin 3206 | -10/Subcaves | Entered Recycling 3380 | -9/Recycling | Scanned before Scraplab entrance 3412 | -9/Recycling | Entered Scraplab 3595 | -9/Recycling | Identified exit to Factory 3595 | -9/Recycling | Discovered exit to Factory (range 5) 3980 | -9/Recycling | Identified exit to Scraptown 3980 | -9/Recycling | Discovered exit to Scraptown (range 2) 3980 | -9/Recycling | Entered Scraptown 3980 | -9/Scraptown | System corruption cleaned by C-Scrubber 4094 | -9/Scraptown | Identified exit to Factory 4094 | -9/Scraptown | Discovered exit to Factory (range 11) 4120 | -9/Scraptown | Heard Great Nut preacher, LISTEN AND RECITE! 4145 | -9/Scraptown | Visited Red Mages 4179 | -9/Scraptown | Visited Spacefarers 4231 | -9/Scraptown | Visited Assassins FH 4262 | -9/Scraptown | Visited Cyclists 4367 | -9/Scraptown | Visited Shadow of the Wyrm 4408 | -9/Scraptown | Visited Symbiants 4573 | -9/Scraptown | Entered Factory 4573 | -6/Factory | Evolved 8 slots: Power x1, Propulsion x3, Utility x4 4574 | -6/Factory | Identified exit to Factory 4574 | -6/Factory | Identified exit to Extension 4574 | -6/Factory | Identified exit to Lower Caves 4656 | -6/Factory | Build established: Hacker-Mutant 4739 | -6/Factory | Tech Extrapolator generated special schematic: Deep Structural Scanner 5013 | -6/Factory | Fabricated W-25 Informer? 5322 | -6/Factory | Repaired Imp. Core Shielding 5328 | -6/Factory | Spotted B-75 Beast 5726 | -6/Factory | Lost 7 parts (2p3n1u1w) 5811 | -6/Factory | Core integrity fell below 50% 5838 | -6/Factory | Lost 10 parts (1n5u4w) 5862 | -6/Factory | Core integrity fell below 20% 7063 | -6/Factory | Build established: Scientist-Mutant 7072 | -6/Factory | Destroyed by H-66 Slayer via exploding Power Conduit Last Messages --------------- 07064_ H-66 Slayer knocked back. 07065_ H-66 Slayer system terminally corrupted. 07065_ Lgt. Fission Core fried. 07065_ Flexi-carbon Leg fried. 07065_ Gauss Rifle fried. 07065_ U-05 Engineer lays Concrete. 07065_ K-01 Serf collects debris. 07065_ U-05 Engineer lays Concrete. 07066_ Penetrated by Slug. 07067_ System corrupted: Imp. Deuterium Engine+ rejected. 07067_ U-05 Engineer builds a Wall. 07067_ K-01 Serf collects debris. 07067_ U-05 Engineer builds a Wall. 07067_ Acquired Imp. Deuterium Engine+. 07068_ U-05 Engineer builds a Wall. 07068_ U-05 Engineer builds a Door. 07071_ P-60 Hacker knocked back. 07071_ Slug penetrates Power Conduit. 07072_ Power Conduit explodes. Map ----- +----------------------------------------------------+ | # # #??????????# # #? | | ###### # #??????????# # #? | | ?????# # #??????????## #########? | | ###### # #???????????# #????????? | | # #???????????# ########## | | ########################## # # | | # ## # # """" # | | #"" """"""" ## # # """" # | | #"Y """"""" ## # # """" # | | ##+#########"" """"""" ## """" + + """" # | | #?# """"""" ## """" # # """" # | | #?# ## """" # # """" # | | "" """" #?# """"""" ## """" # # """" # | | "" """" #????????????????# # # # | | "" """" !#????????????????########### ########## | | "" """" #??????????????????????????# #????????? | | #?????????????????????????## ##???????? | | "" """" #?????###+######?##########t #???????? | | "" """" ####### ? "" #???????? | | "" """" + Rt ? "T #???????? | | "" """" ####### h ? #???????? | | #?????# #??????########## #???????? | | #######+######## R##############??#######???????? | | + u hp #????????????????? | | # ku# h k #????????????????? | | ! # #u " @ #????????????????? | | # # " #????????????????? | | # # " #????????????????? | | u# # " #????????????????? | | # u# " #????????????????? | | [! # # " #????????????????? | | # # " "" "" #????????????????? | | ################ # " ""S"" #????????????????? | | #??############# # " """" #????????????????? | | ??# # # #????????????????? | | "??# # ##############????????????????? | | "??# """" # ####################??????????? | | R??# """ # # """"""""""" #??????????? | | "" # """" " # # """"T"""" #??????????? | | # """" """" # # ! #??????????? | | " # """" """" # # ! #??????????? | | # """" """" # # #??????????? | | " # # # """ """ #??????????? | | # / + """"" """"" !#??????????? | | " # ! # # """"" """"" #??????????? | | ############# ###############+##########????? | | ###############! #??????????# #! #????? | | # ############ ! # #????? | | """"""" + + #????? | | # ############ # #????? | +----------------------------------------------------+ Best States ------------- Heat Dissipation 56 Energy Generation 35 Energy Capacity 1090 Matter Stores 300 Matter Capacity 300 Sight Range 18 Robot Scan Range 20 Terrain Scan Range 16 Terrain Scan Density 210 Jamming Range 16 Cloak Strength 2 Additional Mass Support 12 Armor Coverage 600 Resistance: KI 35 Resistance: TH 35 Resistance: EX 35 Resistance: EM 60 Resistance: I 35 Resistance: S 35 Resistance: P 35 Core Shielding 30 Power Shielding 90 Propulsion Shielding 90 Phase Shifting 5 Evasion (%) 63 Offensive Hacking 20 Defensive Hacking 10 Item Schematics ----------------- EM Shotgun | -9/Recycling | Hacked Mak. Hover Unit | -6/Factory | Extrapolated Deep Structural Scanner | -6/Factory | Extrapolated Mak. Power Shielding | -6/Factory | Extrapolated Mak. Trap Scanner | -6/Factory | Extrapolated Beamcaster | -6/Factory | Extrapolated Mak. Shrapnel Gun | -6/Factory | Extrapolated Ripper | -6/Factory | Extrapolated Mak. Spear | -6/Factory | Extrapolated Mak. Power Source | -6/Factory | Extrapolated Mak. Coolant Network | -6/Factory | Extrapolated Huge Storage Unit | -6/Factory | Scanalyzed Adv. Assault Cannon | -6/Factory | Scanalyzed Phase Shifter | -6/Factory | Scanalyzed Robot Schematics ------------------ G-34 Mercenary | -9/Recycling | Hacked K-01 Serf | -9/Recycling | Hacked Fabricated ------------ W-25 Informer | x2 | -6/Factory | Preloaded Repaired ---------- Imp. Core Shielding | 62% | -6/Factory Studied --------- Cmb. Airjet | -6/Factory | Hacked Gravmag Array | -6/Factory | Hacked Coil Gun | -6/Factory | Hacked Plasma Cutter | -6/Factory | Hacked Fission Core | -6/Factory | Hacked Axe | -6/Factory | Hacked Chainsword | -6/Factory | Hacked Imp. Hover Unit | -6/Factory | Hacked Imp. Gravmag System | -6/Factory | Hacked Imp. Deuterium Engine | -6/Factory | Hacked Adv. Assault Cannon | -6/Factory | Hacked Powered Hammer | -6/Factory | Hacked Power Maul | -6/Factory | Hacked Hyb. Fission Core | -6/Factory | Hacked Alien Tech Used ----------------- None Achievements -------------- Watch This! Challenges ------------ None Game ------ Seed HypertargetingBlastCapacitor Manual? 0 Play Time 01:07:49 Cumulative 188.5 hours Start 2025.12.10 @ 16:10:02 End 2025.12.10 @ 17:16:28 Sessions 1 Manual Loads 0 Difficulty Explorer Special Mode None Game No. 268 Rogue 0 Adventurer 0 Explorer 268 Win Type - Total 0 Types 0/0/0/0/0/0/0/0/0/0 Lore% 71 Gallery% 67 Achievement% 53 Wizard Run 0 Options --------- Layout 1 ASCII 0 Keyboard 0 Movement Mouse Keybinds 0 Fullscreen 1 Font 24/Smallcaps Map View 50x35 Zoom Use 0% Tactical HUD 1 Map Filters NONE Filters NONE Steam 1 RUN: 339c5a1a-bbd6-4c3b-8062-fee8831f752e